[Event "1st Serbian League 2022"]
[Site "Vrnjacka Banja"]
[Date "2022.09.22"]
[Round "3.20"]
[White "Ivanisevic, Ivan"]
[Black "Ivic, Velimir"]
[Result "1-0"]
[ECO "D78"]
[WhiteElo "2547"]
[BlackElo "2553"]
[Annotator "TA"]
[PlyCount "71"]
[EventDate "2022.09.20"]
[EventType "team-tourn"]
[EventCountry "SRB"]
[SourceTitle "playchess.com"]
[Source "ChessBase"]
[SourceQuality "1"]
[TimeControl "40/5400+30:1800+30"]

{[%evp 12,71,0,0,12,-15,-25,-37,-25,-18,0,-21,-27,-24,-20,-35,-28,-27,-29,-20,-25,-18,-20,-56,-52,-34,-10,0,0,0,0,0,157,160,197,194,181,201,201,199,204,216,253,255,257,257,257,257,618,278,619,618,29952,980,29980,29968,5695,5687,4133,1997,29994,29995]} 1. d4 {[%emt 0:00:02]} d5 {[%emt 0:00:08]} 2. c4 {[%emt 0:00:06]} c6 {[%emt 0:00:04]} 3. Nf3 {[%emt 0:00:26]} Nf6 {[%emt 0:00:08]} 4. g3 {[%emt 0:00:20]} g6 {[%emt 0:00:15]} 5. Bg2 {[%emt 0:02:09]} Bg7 {[%emt 0:00:15]} 6. Na3 {[%emt 0:00:33]} O-O {[%emt 0:00:54]} 7. O-O {[%emt 0:00:04]} Qb6 {[%emt 0:01:20] [#] D78: Fianchetto Grünfeld: 6 0-0 c6.} 8. h3 $146 {[%emt 0:14:27]} ({Predecessor:} 8. Qa4 Bf5 9. c5 Qa6 10. Qxa6 Nxa6 11. Bf4 b6 12. cxb6 axb6 13. Nb1 Nb4 14. Nc3 Ne4 15. Rfc1 Nxc3 16. Rxc3 {½-½ (47) Studer,N (2484)-Baenziger,F (2382) Lenzerheide 2018}) 8... Bf5 {[%emt 0:02:41]} 9. Nh4 {[%emt 0:13:42]} Be6 {[%emt 0:02:27] Black is slightly better.} 10. Nc2 {[%emt 0:13:53]} Nbd7 {[%emt 0:05:09]} 11. g4 {[%emt 0:15:12]} h5 {[%emt 0:18:37]} 12. gxh5 {[%emt 0:00:07]} Nxh5 {[%emt 0:03:10]} 13. e4 {[%emt 0:00:20]} dxe4 {[%emt 0:05:34]} (13... dxc4 14. d5 Rad8 15. dxe6 $11) 14. d5 $1 {[%emt 0:01:52]} cxd5 {[%emt 0:00:16]} 15. cxd5 {[%emt 0:00:06] [#]} Bxh3 $1 {[%emt 0:01:38]} 16. Bxh3 {[%emt 0:01:28]} Ne5 {[%emt 0:00:23] Strongly threatening ...Qf6.} 17. Nd4 {[%emt 0:08:54]} Rad8 $1 {[%emt 0:05:56]} 18. Nhf5 $1 {[%emt 0:13:41]} Qf6 {[%emt 0:17:38]} 19. Bg2 $1 {[%emt 0:03:54]} (19. Nxg7 Kxg7 20. f4 Nd3 21. Nf5+ (21. Be3 $2 Rxd5 22. Nc2 Ng3 $19) 21... gxf5 22. Qxh5 Rxd5 23. Qg5+ Qxg5+ 24. fxg5 Rc8 $17) 19... Rxd5 {[%emt 0:07:43]} 20. Bxe4 {[%emt 0:00:44]} Rd7 {[%emt 0:08:49]} (20... Rdd8 $5 21. Qe2 $8 (21. Nxg7 $2 Kxg7 22. f4 Rxd4 $19) 21... gxf5 22. Nxf5 e6 23. Nh6+ (23. Qxh5 exf5 24. Bg5 Qe6 $15) 23... Bxh6 24. Qxh5 Qg7+ 25. Kh1 Bxc1 $11) 21. Qe2 $1 {[%emt 0:00:06]} (21. Nxg7 $2 Kxg7 22. Be3 (22. Qd2 $2 Rxd4 23. Qxd4 Nf3+ 24. Bxf3 Qxd4 $19) 22... Nf4 $19) 21... gxf5 {[%emt 0:07:56] White leaves nothing to chance now.} ({Black should play} 21... Rc8 $1 $11) 22. Nxf5 $16 {[%emt 0:00:05]} e6 {[%emt 0:02:57]} 23. Qxh5 {[%emt 0:03:02][%cal Of5e7] Intending Ne7+! and mate.} exf5 {[%emt 0:00:10]} 24. Bxf5 {[%emt 0:00:04][%csl Gf5][%cal Rh5h7] A strong pair of Bishops.} Rfd8 {[%emt 0:01:09]} 25. Bxd7 $40 {[%emt 0:00:34][%mdl 128] Black is in trouble.} Rxd7 {[%emt 0:00:36]} 26. Be3 {[%emt 0:00:30]} Rd5 {[%emt 0:06:15] ( -> ...Nf3+)} 27. f4 {[%emt 0:01:19]} Nc4 {[%emt 0:01:05]} 28. Qxd5 {[%emt 0:00:31]} Nxe3 {[%emt 0:01:17]} 29. Qg5 {[%emt 0:01:45]} (29. Qxb7 Qg6+ 30. Kh2 (30. Kf2 Bd4 $11) 30... Qh5+ 31. Kg3 (31. Kg1 Bd4 $15) 31... Nxf1+ 32. Rxf1 Qg6+ 33. Kh4 Qh7+ 34. Kg4 Qg6+ 35. Kf3 Qd3+ 36. Kf2 Bd4+ 37. Ke1 Qe3+ 38. Kd1 Qd3+ 39. Ke1 Qe3+ 40. Kd1 Qd3+ 41. Ke1 $11) 29... Qxb2 $2 {[%emt 0:00:00]} (29... Nxf1 30. Qxf6 (30. Rxf1 Qxb2 31. Rd1 Qb6+ 32. Kg2 Qe6 $18) (30. Kxf1 Qd6 $16) 30... Bxf6) 30. Rae1 {[%emt 0:01:06]} (30. Rfc1 $142) 30... Qd4 $2 {[%emt 0:00:26]} (30... Nxf1 31. Re8+ (31. Rxf1 Qxa2 32. Re1 Qa4 $14) (31. Kxf1 Qh2 $18) 31... Kh7 32. Qh5+ (32. Kxf1 Qb1+ 33. Kg2 Qxa2+ 34. Kh3 Qb3+ 35. Kh4 Qd1 $16) 32... Bh6 33. Qxf7+ (33. Kxf1 Qc1+ 34. Kf2 Qxf4+ 35. Qf3 Qd4+ 36. Kg2 Kg6 $14) 33... Qg7+ 34. Qxg7+ Kxg7 35. Kxf1 Bxf4 36. Re7+ Kf6 37. Rxb7 Be3) 31. Rf2 $18 {[%emt 0:00:58]} f5 {[%emt 0:00:32]} 32. Rc1 {[%emt 0:00:37]} (32. Qe7 $142 Nd5 33. Qe6+ Kh8 34. Qe8+ Kh7 35. Qh5+ Kg8 36. Re8+ Bf8 37. Qh6) 32... Qd7 {[%emt 0:00:30]} 33. Re2 {[%emt 0:01:33]} Ng4 {[%emt 0:00:10]} 34. Qg6 {[%emt 0:01:10][%cal Oe2d2] Threatening mate with Rd2!} Nf6 {[%emt 0:00:50] [#]} 35. Rd2 $3 {[%emt 0:01:18][%mdl 512]} Nd5 {[%emt 0:00:29] [#]} (35... Qe8 36. Qxe8+) 36. Rxd5 $1 {[%emt 0:00:13] Weighted Error Value: White=0.36/Black=0.89} 1-0

[Event "1st Serbian League 2022"]
[Site "Vrnjacka Banja"]
[Date "2022.09.22"]
[Round "3.21"]
[White "Nenezic, Marko"]
[Black "Perunovic, Milos"]
[Result "0-1"]
[ECO "D43"]
[WhiteElo "2528"]
[BlackElo "2542"]
[Annotator "TA"]
[PlyCount "78"]
[EventDate "2022.09.20"]
[EventType "team-tourn"]
[EventCountry "SRB"]
[SourceTitle "playchess.com"]
[Source "ChessBase"]
[SourceQuality "1"]
[TimeControl "40/5400+30:1800+30"]

{[%evp 20,78,0,0,8,-25,66,66,70,82,80,74,106,56,54,0,77,70,94,25,60,29,63,42,80,72,85,67,92,52,67,70,55,62,62,35,35,39,23,0,-11,-91,-88,-75,-47,-31,-41,-32,-50,-20,0,-128,-128,-128,-129,-122,-135,-1772,-1811,-29998,-29999]} 1. d4 {[%emt 0:00:26]} d5 {[%emt 0:02:37]} 2. c4 {[%emt 0:00:35]} c6 {[%emt 0:00:07]} 3. Nf3 {[%emt 0:00:32]} Nf6 {[%emt 0:00:06]} 4. Nc3 {[%emt 0:00:37]} e6 {[%emt 0:00:22]} 5. Bg5 {[%emt 0:00:46]} h6 {[%emt 0:06:41]} 6. Bh4 {[%emt 0:01:25]} dxc4 {[%emt 0:04:54]} 7. e4 {[%emt 0:00:19]} g5 {[%emt 0:00:21]} 8. Bg3 {[%emt 0:00:08]} b5 {[%emt 0:00:03]} 9. Be2 {[%emt 0:00:57]} Bb7 {[%emt 0:04:00]} 10. h4 {[%emt 0:01:21]} g4 {[%emt 0:00:05]} 11. Ne5 {[%emt 0:00:08]} Nbd7 {[%emt 0:00:10] D43: Semi-Slav: 5 Bg5 h6.} 12. Nxd7 {[%emt 0:00:49]} Nxd7 {[%emt 0:03:28]} (12... Qxd7 $11 13. Be5 Qe7) 13. Bxg4 $14 {[%emt 0:05:29]} Rg8 {[%emt 0:04:01] White is slightly better.} 14. O-O {[%emt 0:13:28]} Qb6 {[%emt 0:20:39]} 15. a4 {[%emt 0:05:10]} a5 {[%emt 0:05:49]} 16. axb5 {[%emt 0:23:20]} (16. Qf3 $1 $16) 16... cxb5 {[%emt 0:00:16]} 17. Kh1 {[%emt 0:03:53] [#]} (17. Kh2 $14) 17... Nf6 $146 {[%emt 0:12:40] [#]} (17... Rxg4 $1 $11 18. Qxg4 b4) ({Predecessor:} 17... Rxg4 18. Qxg4 b4 19. Na4 Qxd4 20. Rfd1 Qxe4 21. Qxe4 Bxe4 22. Rxd7 Kxd7 23. Nb6+ Kc6 24. Nxa8 c3 25. bxc3 b3 {½-½ (25) Jones,B (2311)-Tomecek,J (2370) ICCF email 2007}) 18. Bf3 $1 $16 {[%emt 0:01:14]} Rd8 {[%emt 0:00:54]} 19. Be5 {[%emt 0:39:23]} (19. d5 $16) 19... Nd7 $11 {[%emt 0:02:08]} 20. Bh2 {[%emt 0:00:00]} Nf6 {[%emt 0:07:45]} 21. d5 {[%emt 0:00:00]} h5 {[%emt 0:00:19]} 22. Qe2 {[%emt 0:00:00]} Ng4 {[%emt 0:01:09] [#]} 23. Bg3 $1 {[%emt 0:00:00]} Bc5 {[%emt 0:11:42]} 24. Rad1 {[%emt 0:00:00] e5 is the strong threat.} e5 $1 {[%emt 0:03:14]} 25. Bxg4 {[%emt 0:00:00]} Rxg4 {[%emt 0:00:06]} 26. Bxe5 {[%emt 0:00:00] Threatens to win with g3.} Rxh4+ {[%emt 0:00:16]} 27. Bh2 {[%emt 0:00:00]} Kf8 {[%emt 0:04:00]} (27... Qc7 $2 28. g3 Rg4 29. Nxb5 $16) 28. Qf3 {[%emt 0:00:00]} Re8 {[%emt 0:01:57]} 29. g3 {[%emt 0:00:01]} (29. Qg3 $5 {[%cal Rg3h4]} Rg4 30. Qf3 $11) 29... Rg4 {[%emt 0:00:19]} 30. Qf5 {[%emt 0:00:12]} (30. Qg2 $11) 30... Bc8 {[%emt 0:01:09]} 31. Qxh5 {[%emt 0:00:41][%cal Od5d6] And now d6! would win.} Kg7 {[%emt 0:00:35] Strongly threatening ...Rh8.} (31... Qf6 $5 {[%cal Rf6f3]} 32. f3 Rg6 $15) 32. d6 $1 {[%emt 0:00:36]} Bxd6 {[%emt 0:00:20] aiming for ...b4. The board is on fire.} 33. Qxb5 {[%emt 0:01:26]} Qxb5 {[%emt 0:00:30]} 34. Nxb5 {[%emt 0:00:01]} Be5 $36 {[%emt 0:00:14][%mdl 2048] Black is more active.} 35. Nd6 {[%emt 0:03:42]} (35. f3 $11 Rg6 36. Rf2) 35... Bxd6 $17 {[%emt 0:00:37]} 36. Rxd6 {[%emt 0:00:04]} Rgxe4 {[%emt 0:00:09]} 37. Rd2 {[%emt 0:01:11]} Re2 {[%emt 0:02:02]} 38. Rfd1 {[%emt 0:00:26][%mdl 8192]} (38. Rxe2 $17 Rxe2 39. g4) 38... Bb7+ $19 {[%emt 0:00:17]} 39. Kg1 {[%emt 0:00:07]} Re1+ {[%emt 0:00:07] Weighted Error Value: White=0.53/Black=0.15 (very precise)} 0-1

[Event "1st Serbian League 2022"]
[Site "Vrnjacka Banja"]
[Date "2022.09.22"]
[Round "3.22"]
[White "Miljkovic, Miroslav D"]
[Black "Djukic, Nikola"]
[Result "0-1"]
[ECO "E73"]
[WhiteElo "2456"]
[BlackElo "2536"]
[Annotator "TA"]
[PlyCount "78"]
[EventDate "2022.09.20"]
[EventType "team-tourn"]
[EventCountry "SRB"]
[SourceTitle "playchess.com"]
[Source "ChessBase"]
[SourceQuality "1"]
[TimeControl "40/5400+30:1800+30"]

{[%evp 13,77,48,52,55,64,71,70,62,77,62,50,19,21,39,38,54,31,0,0,0,0,-8,-6,-8,-6,-7,0,0,0,-332,-307,-293,-322,-331,-334,-718,-709,-746,-690,-685,-582,-554,-568,-697,-667,-695,-683,-670,-521,-662,-679,-686,-684,-572,-645,-640,-602,-875,-870,-12839,-12838,-29997,-29998,-29998,-29999,-29999]} 1. d4 {[%emt 0:00:04]} Nf6 {[%emt 0:00:37]} 2. c4 {[%emt 0:00:12]} g6 {[%emt 0:00:07]} 3. Nc3 {[%emt 0:00:13]} Bg7 {[%emt 0:00:06]} 4. e4 {[%emt 0:00:56]} d6 {[%emt 0:00:05]} 5. Be2 {[%emt 0:00:37]} O-O {[%emt 0:00:13]} 6. Be3 {[%emt 0:00:19]} e5 {[%emt 0:00:56]} 7. d5 {[%emt 0:01:52]} Na6 {[%emt 0:00:11]} 8. g4 {[%emt 0:04:28][%cal Bg2g4,Bg4g5][%mdl 32] E73: King's Indian: Averbakh Variation without 6...c5.} Nc5 {[%emt 0:00:23]} 9. f3 {[%emt 0:04:06]} h5 {[%emt 0:00:47] is cutting edge theory.} 10. g5 {[%emt 0:15:30] White is slightly better.} Nh7 {[%emt 0:00:39][%cal Bf6h7,Bh7g5,Bg5e4][%mdl 32]} 11. h4 {[%emt 0:15:44]} f6 {[%emt 0:00:34]} 12. Qd2 {[%emt 0:02:58]} fxg5 {[%emt 0:00:30]} 13. hxg5 {[%emt 0:00:40]} Rf4 $1 {[%emt 0:00:39]} 14. Bxf4 {[%emt 0:12:05]} exf4 {[%emt 0:00:12]} 15. Qxf4 {[%emt 0:00:31]} Nxg5 {[%emt 0:00:32]} 16. Qe3 {[%emt 0:00:16]} Be5 {[%emt 0:01:36] Inhibits Rh2.} 17. f4 {[%emt 0:08:57]} Bxc3+ {[%emt 0:00:12][%mdl 64] [#] Remove Defender} 18. bxc3 $146 {[%emt 0:09:44]} ({Predecessor:} 18. Qxc3 Ngxe4 19. Qe3 Qf6 20. O-O-O Na4 21. Rd4 Bf5 22. Bd3 Ng3 23. Rh2 Bxd3 24. Qxd3 {0-1 (47) Lima,D (2508)-Jones,G (2684) Chess.com INT 2021}) 18... Ngxe4 {[%emt 0:00:09] Pair of Knights!} 19. Nf3 $1 {[%emt 0:00:38]} Bf5 {[%emt 0:29:56][%cal Bc8f5,Bf5g6,Bg6h5][%mdl 32] White must now prevent ...Ng3.} 20. Nd4 {[%emt 0:00:26]} Qd7 {[%emt 0:01:31]} 21. Bxh5 $2 {[%emt 0:12:08][%mdl 8192] Black continues to play with concentration.} gxh5 $19 {[%emt 0:22:21]} 22. Rxh5 {[%emt 0:00:06] [#]} Bg6 {[%emt 0:07:26]} (22... Bg4 23. Rh6 Rf8 24. f5 $15) 23. Rh6 {[%emt 0:01:13]} Qg4 {[%emt 0:00:49] Really sharp!} 24. f5 $2 {[%emt 0:00:04]} (24. Qf3 Qxf3 25. Nxf3) 24... Bh5 {[%emt 0:02:06]} 25. Ne2 {[%emt 0:06:53]} Qh4+ {[%emt 0:16:38]} 26. Kd1 {[%emt 0:01:02] Hoping for Kc2.} Qh1+ {[%emt 0:02:00]} 27. Kc2 {[%emt 0:00:04]} Qxa1 {[%emt 0:00:41]} 28. Rxh5 {[%emt 0:00:13][%cal Oh5h8]} Qxa2+ {[%emt 0:01:55]} 29. Kd1 {[%emt 0:00:17]} Qa4+ {[%emt 0:07:11]} (29... Nd3 {is a self mate.} 30. Qg1+) 30. Kc1 {[%emt 0:00:02] White threatens Qg1+ and mate.} Qa1+ {[%emt 0:00:14]} 31. Kc2 {[%emt 0:03:42][%cal Oh5h8]} Re8 {[%emt 0:02:56] ( -> ...Qa2+)} 32. Nc1 {[%emt 0:00:00] Against Qa2+} Qa4+ {[%emt 0:00:44]} ({Stronger than} 32... Na4 33. Qg1+ Kf8 34. Rh8+ Ke7 35. Qg7+ Kd8 36. Rxe8+ Kxe8 37. Qg8+ Ke7 38. Qg7+ Ke8 39. Qg8+ Ke7 40. Qg7+ Ke8 $11) 33. Kb2 {[%emt 0:00:00]} Qd1 {[%emt 0:00:13]} 34. Rh2 {[%emt 0:00:35]} Na4+ {[%emt 0:00:39]} 35. Ka3 {[%emt 0:00:14]} Nb6 {[%emt 0:00:54]} 36. Rg2+ {[%emt 0:01:09]} Kf7 {[%emt 0:00:10]} 37. Qh6 {[%emt 0:00:30]} Qa4+ {[%emt 0:00:21] Black mates.} 38. Kb2 {[%emt 0:00:03]} Nxc4+ {[%emt 0:00:09]} 39. Kb1 {[%emt 0:00:03]} Nxc3# {[%emt 0:00:09] Weighted Error Value: White=0.55/Black=0.14 (very precise)} 0-1

[Event "1st Serbian League 2022"]
[Site "Vrnjacka Banja"]
[Date "2022.09.22"]
[Round "3.23"]
[White "Strikovic, Aleksa"]
[Black "Kosic, Dragan"]
[Result "1/2-1/2"]
[ECO "A31"]
[WhiteElo "2491"]
[BlackElo "2399"]
[Annotator "TA"]
[PlyCount "70"]
[EventDate "2022.09.20"]
[EventType "team-tourn"]
[EventCountry "SRB"]
[SourceTitle "playchess.com"]
[Source "ChessBase"]
[SourceQuality "1"]
[TimeControl "40/5400+30:1800+30"]

{[%evp 12,70,31,0,13,17,72,68,65,46,32,40,47,27,49,34,39,48,52,51,97,89,110,62,72,68,87,30,33,39,33,9,11,10,7,9,7,-17,0,0,0,-76,-51,-46,-60,-51,-22,-21,-21,-21,-8,-8,-8,-14,-12,-10,0,0,0,-17,0]} 1. c4 {[%emt 0:00:04]} c5 {[%emt 0:00:14]} 2. Nf3 {[%emt 0:00:11]} Nc6 {[%emt 0:00:54]} 3. d4 {[%emt 0:00:31]} cxd4 {[%emt 0:00:11]} 4. Nxd4 {[%emt 0:00:05]} Nf6 {[%emt 0:00:09]} 5. Nc3 {[%emt 0:00:14]} Qb6 {[%emt 0:01:15]} 6. Nb3 {[%emt 0:03:51]} e6 {[%emt 0:00:10]} 7. e4 {[%emt 0:00:54]} Bb4 {[%emt 0:00:41] A31: Symmetrical English: 2 Nf3 Nf6 3 d4.} 8. Bd3 {[%emt 0:03:38][%cal Bf1d3,Bd3c4,Bc4d5][%mdl 32]} d5 {[%emt 0:04:04]} (8... Ne5 $11 {remains equal.}) 9. exd5 $16 {[%emt 0:03:05]} exd5 {[%emt 0:00:16] White is slightly better.} 10. O-O {[%emt 0:02:18]} dxc4 {[%emt 0:02:46]} 11. Re1+ {[%emt 0:06:17]} Be7 {[%emt 0:09:14]} (11... Kf8 12. Bxc4 (12. Be3 Qa6 $11) 12... Bg4 13. Qd3 $16) 12. Bxc4 {[%emt 0:00:49]} O-O {[%emt 0:02:35] [#]} 13. Be3 $146 {[%emt 0:17:08]} ({Predecessor:} 13. Bf4 Qb4 14. Qe2 Bg4 15. Qf1 Be6 16. Bxe6 Qxf4 17. Bd5 Bb4 18. Bxc6 Bxc3 19. bxc3 bxc6 {½-½ (64) Vasudeva,T (2100)-Guerrero,A (2048) Fremont 2012}) 13... Qb4 {[%emt 0:07:18]} 14. Qe2 {[%emt 0:04:50]} Ne5 {[%emt 0:05:37]} 15. Nd5 {[%emt 0:05:33]} Nxd5 {[%emt 0:02:16]} (15... Qxc4 $14 {is more appropriate.} 16. Nxe7+ Kh8) 16. Bxd5 {[%emt 0:01:22] [#] Hoping for Bd2.} Ng6 {[%emt 0:12:09]} 17. Rac1 {[%emt 0:06:47] White is more active.} ({White should try} 17. Rad1 $16) 17... Bg4 $14 {[%emt 0:07:20]} 18. f3 {[%emt 0:06:03]} Bd7 {[%emt 0:04:25]} 19. Qf2 {[%emt 0:24:26]} (19. Rc4 $16 Qd6 20. Bxb7) 19... Rfe8 $11 {[%emt 0:18:04]} 20. Red1 {[%emt 0:02:28]} Bc6 {[%emt 0:08:26]} 21. Bxc6 {[%emt 0:02:19]} bxc6 {[%emt 0:00:17]} 22. Nd4 {[%emt 0:00:31]} Bf6 {[%emt 0:02:13]} 23. b3 {[%emt 0:01:40]} ({Reject} 23. Rxc6 Rad8 24. Rcc1 (24. a3 $2 Qa4 $19) 24... Qd6 $17) 23... Rad8 $1 {[%emt 0:02:23]} 24. Nc2 {[%emt 0:02:14]} ({Avoid the trap} 24. Nxc6 $2 Rxd1+ 25. Rxd1 Qc3 $19) 24... Rxd1+ {[%emt 0:03:18]} 25. Rxd1 {[%emt 0:00:01]} Qa5 {[%emt 0:00:44]} 26. Bd4 {[%emt 0:03:52]} (26. Ne1 $11) 26... Qxa2 {[%emt 0:02:12]} 27. Bxf6 {[%emt 0:00:02]} gxf6 {[%emt 0:00:06]} 28. Nd4 {[%emt 0:00:15]} Qxf2+ {[%emt 0:01:03]} (28... Qa3 $5 {[%cal Rc6c5]}) 29. Kxf2 $15 {[%emt 0:00:01][%mdl 4096] Endgame KRN-KRN. The position is equal.} Rd8 {[%emt 0:00:17] [#] Threatens to win with ...c5.} 30. Ke1 {[%emt 0:00:02]} Nh4 {[%emt 0:03:23]} 31. Nxc6 {[%emt 0:00:40]} Nxg2+ {[%emt 0:00:05]} 32. Ke2 {[%emt 0:00:05]} Nf4+ {[%emt 0:00:14]} 33. Ke1 {[%emt 0:00:01]} Ng2+ {[%emt 0:00:11]} 34. Ke2 {[%emt 0:00:01]} Nf4+ {[%emt 0:00:09]} 35. Ke1 {[%emt 0:00:02]} Ng2+ {[%emt 0:02:36] Weighted Error Value: White=0.15 (very precise) /Black=0.13 (very precise)} 1/2-1/2

[Event "1st Serbian League 2022"]
[Site "Vrnjacka Banja"]
[Date "2022.09.22"]
[Round "3.24"]
[White "Lazic, Miroljub"]
[Black "Perunovic, Miodrag"]
[Result "0-1"]
[ECO "A48"]
[WhiteElo "2300"]
[BlackElo "2413"]
[Annotator "TA"]
[PlyCount "112"]
[EventDate "2022.09.20"]
[EventType "team-tourn"]
[EventCountry "SRB"]
[SourceTitle "playchess.com"]
[Source "ChessBase"]
[SourceQuality "1"]
[TimeControl "40/5400+30:1800+30"]

{[%evp 14,112,0,0,0,0,7,11,13,0,0,0,0,0,7,7,21,20,22,27,29,28,47,13,33,37,43,49,47,45,52,44,78,44,38,36,47,39,100,64,127,104,152,146,135,140,156,157,138,108,143,56,54,-22,-26,-17,58,58,58,-42,-43,-47,0,0,0,-145,-166,-154,-150,-166,-154,-158,-162,-153,-160,-162,-163,-153,-143,-174,-176,-181,-188,-164,-180,-197,-197,-218,-218,-218,-214,-224,-200,-279,-237,-382,-347,-539,-483,-1167,-1141]} 1. Nf3 {[%emt 0:00:05]} Nf6 {[%emt 0:00:08]} 2. b3 {[%emt 0:01:34]} g6 {[%emt 0:00:08]} 3. Bb2 {[%emt 0:00:08]} Bg7 {[%emt 0:00:08]} 4. d4 {[%emt 0:00:59]} O-O {[%emt 0:00:09]} 5. Nbd2 {[%emt 0:00:09]} d6 {[%emt 0:05:34]} 6. e3 {[%emt 0:03:19]} c5 {[%emt 0:05:51]} 7. Be2 {[%emt 0:08:14]} Nc6 {[%emt 0:04:57]} 8. O-O {[%emt 0:00:31]} cxd4 {[%emt 0:01:08] A48: 1 d4 Nf6 2 Nf3 g6: Torre, London and Colle Systems.} 9. Nxd4 {[%emt 0:00:34]} Bd7 {[%emt 0:00:35]} 10. c4 {[%emt 0:00:50]} a6 {[%emt 0:02:07] The position is equal.} 11. N2f3 {[%emt 0:02:37]} Qa5 {[%emt 0:03:48]} 12. a3 {[%emt 0:02:45]} Rfc8 {[%emt 0:00:11]} 13. Rc1 {[%emt 0:16:30] [#]} Rab8 $146 {[%emt 0:00:30]} ({Predecessor:} 13... Qb6 14. Qc2 Nd8 15. Nd2 e5 16. N4f3 Ne6 17. Qb1 a5 18. a4 Nc5 19. Ba3 Bf5 20. Bxc5 Qxc5 {0-1 (28) Bungter,H-Krebs,D Badenweiler 1995}) 14. b4 {[%emt 0:00:51]} Qd8 {[%emt 0:00:11]} 15. Nb3 {[%emt 0:04:29]} Na7 {[%emt 0:11:32]} 16. Nfd2 {[%emt 0:06:30]} Ba4 {[%emt 0:00:36]} 17. Nb1 {[%emt 0:05:14]} Bd7 {[%emt 0:08:17]} 18. Bf3 {[%emt 0:05:38]} Be6 {[%emt 0:04:35]} 19. N1d2 {[%emt 0:00:57]} Nc6 {[%emt 0:01:07]} 20. c5 {[%emt 0:06:53]} Ne5 {[%emt 0:07:06]} 21. Bxe5 {[%emt 0:06:19]} dxe5 {[%emt 0:00:05]} 22. Na5 {[%emt 0:04:17]} Qc7 {[%emt 0:01:49]} 23. Ne4 {[%emt 0:05:41]} Bf5 {[%emt 0:14:26]} 24. Nxf6+ {[%emt 0:01:06]} Bxf6 {[%emt 0:00:08]} 25. Bd5 {[%emt 0:05:18]} Rd8 {[%emt 0:00:13]} (25... e6 $14 26. Bc4 Rd8) 26. Qf3 {[%emt 0:00:29][%cal Rd5b7]} Bc8 {[%emt 0:09:50]} ({Black should play} 26... Bd3 $14) 27. Rfd1 {[%emt 0:04:23]} Kg7 {[%emt 0:00:36]} ({Better is} 27... Rf8 28. c6 b6) 28. c6 $16 {[%emt 0:02:22][%cal Rc6b7]} b6 {[%emt 0:00:14]} 29. Nb7 {[%emt 0:00:10]} Rf8 {[%emt 0:00:27] [#]} 30. Qe2 $1 {[%emt 0:00:37]} Ra8 {[%emt 0:01:48]} 31. Bf3 {[%emt 0:01:14]} h5 {[%emt 0:00:08]} 32. Rc2 {[%emt 0:01:46]} (32. a4 $16) 32... Bf5 $14 {[%emt 0:00:52] And now ...e4 would win.} 33. g3 {[%emt 0:03:14]} (33. e4 $14 Bc8 34. Rd3) 33... e4 $11 {[%emt 0:06:27]} 34. Bg2 {[%emt 0:00:09]} Rfc8 {[%emt 0:05:12]} (34... Bg4 $11 35. f3 exf3 36. Bxf3 Be6) 35. h3 $14 {[%emt 0:00:31]} Qe5 {[%emt 0:00:56]} 36. Rd4 {[%emt 0:00:37]} (36. a4 $1 $14) 36... Qe6 $36 {[%emt 0:00:18][%csl LRc6,LRd4,LRh3][%mdl 2048] Black has the initiative.} 37. Rdc4 {[%emt 0:01:20]} Rc7 {[%emt 0:00:01]} (37... b5 $15 {deserves consideration.} 38. Nc5 Qxc6 39. Bxe4 Bxe4 40. Rxe4 Kg8) 38. Qf1 $11 {[%emt 0:00:23]} Rac8 {[%emt 0:00:08]} 39. g4 {[%emt 0:00:05]} (39. a4 $1 $11) 39... hxg4 $17 {[%emt 0:00:12]} 40. hxg4 {[%emt 0:00:01]} Bxg4 {[%emt 0:00:02]} 41. Rxe4 {[%emt 0:30:46]} Qb3 {[%emt 0:35:42]} 42. Qc4 {[%emt 0:00:00]} Qxc4 {[%emt 0:00:00]} 43. Rexc4 {[%emt 0:00:00]} Be6 {[%emt 0:00:00]} 44. a4 {[%emt 0:00:00]} Bxc4 {[%emt 0:00:00]} 45. Rxc4 {[%emt 0:00:00]} e6 {[%emt 0:00:00]} 46. Rc2 {[%emt 0:00:00]} Be7 {[%emt 0:00:00]} 47. b5 {[%emt 0:00:00] [#]} axb5 $1 {[%emt 0:00:00]} 48. axb5 {[%emt 0:00:00]} Ra8 {[%emt 0:00:00] Inhibits Ra2.} 49. Bf1 {[%emt 0:00:00]} f5 {[%emt 0:00:00]} 50. Rd2 {[%emt 0:00:00]} Kf6 {[%emt 0:00:00]} 51. Kg2 {[%emt 0:00:00]} g5 {[%emt 0:00:00][%cal Bg6g5,Bg5g4][%mdl 32]} 52. Be2 {[%emt 0:00:43]} Rh8 {[%emt 0:00:00]} 53. Ra2 {[%emt 0:00:15]} Bb4 {[%emt 0:00:00] Strongly threatening ...g4.} 54. Ra4 {[%emt 0:00:28]} (54. Kg1 $142) 54... Bc3 {[%emt 0:00:00] aiming for ...Rch7.} 55. Bd3 {[%emt 0:04:36]} (55. Nd6 {is a better defense.} Rch7 56. c7 Rxc7 57. Rc4 Rxc4 58. Nxc4) 55... g4 {[%emt 0:00:00] Hoping for ...Rch7.} 56. Ra6 {[%emt 0:00:35]} (56. Nd6 $142) 56... Rch7 {[%emt 0:00:00] What a bad dream for White.  Weighted Error Value: White=0.38/Black=0.14 (very precise)} 0-1